fUST/lending_fUST_20251206
["ID","MTS","AMOUNT","RATE_DAILY","PERIOD"]
[396468631,1764976251330,-500.0,0.00016438,2]
[396468632,1764976251340,-500.0,0.00016438,2]
[396468633,1764976251352,-1142.55,0.00016438,2]
[396468634,1764976251363,-500.0,0.00016438,2]
[396468635,1764976251372,-500.0,0.00016438,2]
[396468636,1764976251382,-500.0,0.00016438,2]
[396468637,1764976251392,-1793.7,0.00016438,2]
[396468638,1764976251403,-500.0,0.00016438,2]
[396468639,1764976251414,-713.98,0.00016438,2]
[396468640,1764976251426,-500.0,0.00016438,2]
[396468641,1764976251436,-500.0,0.00016438,2]
[396468642,1764976251447,-797.75,0.00016438,2]
[396468643,1764976251457,-1072.09,0.00016438,2]
[396468644,1764976251467,-2256.71,0.00016438,2]
[396468645,1764976251477,-1070.96,0.00016438,2]
[396468646,1764976251487,-500.0,0.00016438,2]
[396468647,1764976251498,-500.0,0.00016438,2]
[396468648,1764976251508,-500.42,0.00016438,2]
[396468649,1764976251519,-500.0,0.00016438,2]
[396468650,1764976251529,-887.89,0.00016438,2]
[396468651,1764976251539,-565.63,0.00016438,2]
[396468652,1764976251548,-500.0,0.00016438,2]
[396468653,1764976251558,-500.0,0.00016438,2]
[396468654,1764976251567,-1163.53,0.00016438,2]
[396468655,1764976251577,-1400.61,0.00016438,2]
[396468656,1764976251586,-2899.53,0.00016438,2]
[396468657,1764976251596,-513.83,0.00016438,2]
[396468658,1764976251606,-500.0,0.00016438,2]
[396468659,1764976251616,-904.62,0.00016438,2]
[396468660,1764976251626,-500.0,0.00016438,2]
[396468661,1764976251636,-637.120942,0.00016438,2]
[396468662,1764976251645,-1092.44,0.00016438,2]
[396468663,1764976251655,-637.120942,0.00016438,2]
[396468664,1764976251665,-637.120942,0.00016438,2]
[396468665,1764976251674,-637.120942,0.00016438,2]
[396468666,1764976251684,-637.120942,0.00016438,2]
[396468667,1764976251696,-637.120942,0.00016438,2]
[396468668,1764976251706,-637.120942,0.00016438,2]
[396468669,1764976251715,-637.120942,0.00016438,2]
[396468670,1764976251725,-637.120942,0.00016438,2]
[396468671,1764976251734,-637.120942,0.00016438,2]
[396468672,1764976251743,-1423.57,0.00016438,2]
[396468673,1764976251754,-637.120942,0.00016438,2]
[396468674,1764976251764,-500.0,0.00016438,2]
[396468675,1764976251773,-637.120942,0.00016438,2]
[396468676,1764976251782,-637.120942,0.00016438,2]
[396468677,1764976251791,-637.120942,0.00016438,2]
[396468678,1764976251800,-637.120942,0.00016438,2]
[396468679,1764976251810,-500.0,0.00016438,2]
[396468680,1764976251819,-637.120951,0.00016438,2]
[396468681,1764976251829,-500.0,0.00016438,2]
[396468682,1764976251838,-500.0,0.00016438,2]
[396468683,1764976251848,-839.42,0.00016438,2]
[396468684,1764976251858,-500.0,0.00016438,2]
[396468685,1764976251868,-529.44,0.00016438,2]
[396468686,1764976251878,-500.0,0.00016438,2]
[396468687,1764976251887,-3677.08,0.00016438,2]
[396468688,1764976251897,-500.0,0.00016438,2]
[396468689,1764976251907,-500.0,0.00016438,2]
[396468690,1764976251916,-500.0,0.00016438,2]
[396468691,1764976251925,-1972.31,0.00016438,2]
[396468692,1764976251934,-500.0,0.00016438,2]
[396468693,1764976251943,-500.0,0.00016438,2]
[396468694,1764976251953,-500.0,0.00016438,2]
[396468695,1764976251963,-2872.02,0.00016438,2]
[396468696,1764976251972,-500.0,0.00016438,2]
[396468697,1764976251981,-500.0,0.00016438,2]
[396468698,1764976251990,-500.0,0.00016438,2]
[396468699,1764976252000,-841.39,0.00016438,2]
[396468700,1764976252009,-1826.54,0.00016438,2]
[396468701,1764976252018,-500.0,0.00016438,2]
[396468702,1764976252027,-995.16,0.00016438,2]
[396468703,1764976252039,-500.0,0.00016438,2]
[396468704,1764976252049,-500.0,0.00016438,2]
[396468705,1764976252058,-500.0,0.00016438,2]
[396468706,1764976252067,-643.6,0.00016438,2]
[396468707,1764976252077,-1032.74,0.00016438,2]
[396468708,1764976252087,-500.0,0.00016438,2]
[396468709,1764976252096,-1007.964071,0.00016438,2]
[396468710,1764976252105,-1007.964071,0.00016438,2]
[396468711,1764976252117,-1885.06,0.00016438,2]
[396468712,1764976252126,-1007.964071,0.00016438,2]
[396468713,1764976252135,-8165.99,0.00016438,2]
[396468714,1764976252144,-1007.964071,0.00016438,2]
[396468715,1764976252154,-500.0,0.00016438,2]
[396468716,1764976252163,-1007.964071,0.00016438,2]
[396468717,1764976252173,-1007.964071,0.00016438,2]
[396468718,1764976252182,-1007.964071,0.00016438,2]
[396468719,1764976252191,-1007.964071,0.00016438,2]
[396468720,1764976252201,-1007.964071,0.00016438,2]
[396468721,1764976252211,-500.0,0.00016438,2]
[396468722,1764976252220,-1007.964071,0.00016438,2]
[396468723,1764976252230,-500.0,0.00016438,2]
[396468724,1764976252239,-1007.964071,0.00016438,2]
[396468725,1764976252248,-1007.964071,0.00016438,2]
[396468726,1764976252257,-1007.964071,0.00016438,2]
[396468727,1764976252266,-1007.964071,0.00016438,2]
[396468728,1764976252275,-500.0,0.00016438,2]
[396468729,1764976252284,-500.0,0.00016438,2]
[396468730,1764976252294,-1007.964071,0.00016438,2]
[396468731,1764976252303,-1007.964066,0.00016438,2]
[396468732,1764976252312,-4551.95,0.00016438,2]
[396468733,1764976252322,-500.0,0.00016438,2]
[396468734,1764976252332,-500.0,0.00016438,2]
[396468735,1764976252341,-500.0,0.00016438,2]
[396468736,1764976252351,-500.0,0.00016438,2]
[396468737,1764976252360,-2707.86,0.00016438,2]
[396468738,1764976252369,-500.0,0.00016438,2]
[396468739,1764976252379,-830.89,0.00016438,2]
[396468740,1764976252388,-500.0,0.00016438,2]
[396468741,1764976252398,-678.48,0.00016438,2]
[396468742,1764976252407,-500.0,0.00016438,2]
[396468743,1764976252416,-1323.29,0.00016438,2]
[396468744,1764976252426,-500.0,0.00016438,2]
[396468745,1764976252435,-500.0,0.00016438,2]
[396468746,1764976252445,-500.0,0.00016438,2]
[396468747,1764976252455,-405.47596753,0.00016438,2]
[396468748,1764976252464,-516.24,0.00016438,2]
[396468749,1764976252473,-500.0,0.00016438,2]
[396468750,1764976252483,-500.0,0.00016438,2]
[396468751,1764976252493,-500.0,0.00016438,2]
[396468752,1764976252503,-500.0,0.00016438,2]
[396468753,1764976252513,-500.0,0.00016438,2]
[396468754,1764976252524,-523.06386947,0.00016438,2]
[396468755,1764976252534,-807.9,0.00016438,2]
[396468756,1764976252545,-868.65,0.00016438,2]
[396468757,1764976252554,-500.0,0.00016438,2]
[396468758,1764976252564,-500.0,0.00016438,2]
[396468759,1764976252573,-500.0,0.00016438,2]
[396468760,1764976252582,-747.67,0.00016438,2]
[396468761,1764976252592,-500.0,0.00016438,2]
[396468762,1764976252602,-500.0,0.00016438,2]
[396468763,1764976252611,-766.1,0.00016438,2]
[396468764,1764976252621,-608.81,0.00016438,2]
[396468765,1764976252631,-500.0,0.00016438,2]
[396468766,1764976252640,-1118.77,0.00016438,2]
[396468767,1764976252705,-1224.4,0.00016438,2]
[396468768,1764976252714,-500.0,0.00016438,2]
[396468769,1764976252725,-500.0,0.00016438,2]
[396468770,1764976252735,-6051.31,0.00016438,2]
[396468771,1764976252744,-500.0,0.00016438,2]
[396468772,1764976252755,-500.0,0.00016438,2]
[396468773,1764976252765,-500.0,0.00016438,2]
[396468774,1764976252776,-2796.59,0.00016438,2]
[396468775,1764976252786,-673.13,0.00016438,2]
[396468776,1764976252797,-543.97,0.00016438,2]
[396468777,1764976252809,-730.42,0.00016438,2]
[396468778,1764976252820,-779.48,0.00016438,2]
[396468779,1764976252831,-500.0,0.00016438,2]
[396468780,1764976252841,-500.0,0.00016438,2]
[396468781,1764976252851,-500.0,0.00016438,2]
[396468782,1764976252862,-500.0,0.00016438,2]
[396468783,1764976252872,-785.26,0.00016438,2]
[396468784,1764976252884,-500.0,0.00016438,2]
[396468785,1764976252895,-500.0,0.00016438,2]
[396468786,1764976252904,-500.0,0.00016438,2]
[396468787,1764976252913,-500.0,0.00016438,2]
[396468788,1764976252922,-500.0,0.00016438,2]
[396468789,1764976252931,-500.0,0.00016438,2]
[396468790,1764976252940,-500.0,0.00016438,2]
[396468791,1764976252950,-500.0,0.00016438,2]
[396468792,1764976252959,-510.83134814,0.00016438,2]
[396468793,1764976252968,-6083.88,0.00016438,2]
[396468794,1764976252978,-731.77,0.00016438,2]
[396468795,1764976252988,-4426.73,0.00016438,2]
[396468796,1764976252997,-887.19,0.00016438,2]
[396468797,1764976253007,-4846.61,0.00016438,2]
[396468798,1764976253016,-2862.67,0.00016438,2]
[396468799,1764976253026,-500.0,0.00016438,2]
[396468800,1764976253038,-500.0,0.00016438,2]
[396468801,1764976253047,-500.0,0.00016438,2]
[396468802,1764976253056,-1197.31,0.00016438,2]
[396468803,1764976253065,-500.0,0.00016438,2]
[396468804,1764976253076,-1818.54,0.00016438,2]
[396468805,1764976253086,-500.0,0.00016438,2]
[396468806,1764976253096,-500.0,0.00016438,2]
[396468807,1764976253105,-500.0,0.00016438,2]
[396468808,1764976253115,-638.95,0.00016438,2]
[396468809,1764976253125,-500.0,0.00016438,2]
[396468810,1764976253134,-1022.42,0.00016438,2]
[396468811,1764976253143,-500.0,0.00016438,2]
[396468812,1764976253152,-500.0,0.00016438,2]
[396468813,1764976253162,-500.0,0.00016438,2]
[396468814,1764976253171,-1695.2,0.00016438,2]
[396468815,1764976253180,-653.35,0.00016438,2]
[396468816,1764976253190,-500.0,0.00016438,2]
[396468817,1764976253199,-500.0,0.00016438,2]
[396468818,1764976253208,-500.0,0.00016438,2]
[396468819,1764976253218,-2458.71,0.00016438,2]
[396468820,1764976253227,-502.19,0.00016438,2]
[396468821,1764976253236,-2044.11,0.00016438,2]
[396468822,1764976253245,-500.0,0.00016438,2]
[396468823,1764976253255,-500.0,0.00016438,2]
[396468824,1764976253264,-500.0,0.00016438,2]
[396468825,1764976253273,-500.0,0.00016438,2]
[396468826,1764976253282,-4346.55,0.00016438,2]
[396468827,1764976253291,-500.0,0.00016438,2]
[396468828,1764976253300,-610.26,0.00016438,2]
[396468829,1764976253309,-233.7104145,0.00016438,2]
[396468830,1764976253318,-500.0,0.00016438,2]
[396468831,1764976253328,-779.22,0.00016438,2]
[396468832,1764976253337,-828.65,0.00016438,2]
[396468833,1764976253346,-500.0,0.00016438,2]
[396468834,1764976253355,-13803.87,0.00016438,2]
[396468835,1764976253364,-500.0,0.00016438,2]
[396468836,1764976253373,-5684.74,0.00016438,2]
[396468837,1764976253383,-1888.49,0.00016438,2]
[396468838,1764976253392,-500.0,0.00016438,2]
[396468839,1764976253401,-500.0,0.00016438,2]
[396468840,1764976253410,-532.43,0.00016438,2]
[396468841,1764976253419,-646.49,0.00016438,2]
[396468842,1764976253428,-6264.73,0.00016438,2]
[396468843,1764976253437,-500.0,0.00016438,2]
[396468844,1764976253447,-776.68,0.00016438,2]
[396468845,1764976253456,-3495.02,0.00016438,2]
[396468846,1764976253466,-1276.33,0.00016438,2]
[396468847,1764976253475,-1108.04,0.00016438,2]
[396468848,1764976253485,-864.01,0.00016438,2]
[396468849,1764976253494,-500.0,0.00016438,2]
[396468850,1764976253503,-500.0,0.00016438,2]
[396468851,1764976253512,-500.0,0.00016438,2]
[396468852,1764976253522,-500.0,0.00016438,2]
[396468853,1764976253531,-500.0,0.00016438,2]
[396468854,1764976253541,-500.0,0.00016438,2]
[396468855,1764976253550,-500.0,0.00016438,2]
[396468856,1764976253560,-686.01,0.00016438,2]
[396468857,1764976253570,-594.37,0.00016438,2]
[396468858,1764976253579,-1718.02,0.00016438,2]
[396468859,1764976253588,-500.0,0.00016438,2]
[396468860,1764976253598,-623.69,0.00016438,2]
[396468861,1764976253608,-500.0,0.00016438,2]
[396468862,1764976253618,-862.16,0.00016438,2]
[396468863,1764976253627,-517.83,0.00016438,2]
[396468864,1764976253637,-1094.1,0.00016438,2]
[396468865,1764976253647,-681.36,0.00016438,2]
[396468866,1764976253656,-826.94,0.00016438,2]
[396468867,1764976253666,-8301.52,0.00016438,2]
[396468868,1764976253675,-905.76,0.00016438,2]
[396468869,1764976253685,-500.0,0.00016438,2]
[396468870,1764976253695,-628.25,0.00016438,2]
[396468871,1764976253705,-2189.22,0.00016438,2]
[396468872,1764976253715,-500.0,0.00016438,2]
[396468873,1764976253725,-500.0,0.00016438,2]
[396468874,1764976253734,-1231.79,0.00016438,2]
[396468875,1764976253744,-2611.33,0.00016438,2]
[396468876,1764976253753,-228.12978137,0.00016438,2]
[396468877,1764976253763,-235.49229014,0.00016439,2]
[396468878,1764976253773,-5747.0,0.00016454,2]
[396468879,1764976253782,-800.0,0.00016465,2]
[396468880,1764976253792,-193.0,0.00016475,2]
[396468881,1764976253801,-967.0,0.00016493,2]
[396468882,1764976253811,-800.0,0.00016499,2]
[396468883,1764976253820,-5747.0,0.00016511,2]
[396468884,1764976253830,-800.0,0.00016515,2]
[396468885,1764976253840,-967.0,0.00016535,2]
[396468886,1764976253850,-800.0,0.00016542,2]
[396468887,1764976253859,-800.0,0.00016551,2]
[396468888,1764976253869,-967.0,0.00016573,2]
[396468889,1764976253879,-800.0,0.00016592,2]
[396468890,1764976253888,-967.0,0.00016594,2]
[396468891,1764976253897,-800.0,0.00016598,2]
[396468892,1764976253907,-435.91698588,0.00016612,2]
[396468893,1764976253917,-800.0,0.00016615,2]
[396468894,1764976253927,-967.0,0.00016643,2]
[396468895,1764976253937,-200.0,0.00016653,2]
[396468896,1764976253946,-967.0,0.00016655,2]
[396468897,1764976253956,-800.0,0.00016695,2]
[396468898,1764976253967,-500.0,0.00016712,2]
[396468899,1764976253977,-500.0,0.00016712,2]
[396468900,1764976253987,-500.0,0.00016712,2]
[396468901,1764976253997,-630.77948911,0.00016712,2]
[396468902,1764976254006,-500.0,0.00016712,2]
[396468903,1764976254016,-500.0,0.00016712,2]
[396468904,1764976254026,-500.0,0.00016712,2]
[396468905,1764976254040,-572.11978793,0.00016712,2]
[396468906,1764976254049,-500.0,0.00016712,2]
[396468907,1764976254059,-500.0,0.00016712,2]
[396468908,1764976254069,-500.0,0.00016712,2]
[396468909,1764976254079,-177.16438144,0.00016712,2]
[396468910,1764976254088,-562.1,0.00016712,2]
[396468911,1764976254097,-500.0,0.00016712,2]
[396468912,1764976254107,-535.31,0.00016712,2]
[396468913,1764976254118,-513.15,0.00016712,2]
[396468914,1764976254127,-500.0,0.00016712,2]
[396468915,1764976254136,-304.8688236,0.00016712,2]
[396468916,1764976312373,150.0,7.246e-05,2]
[396468917,1764976313262,150.0,7.905e-05,2]
[396468918,1764976313712,150.0,8.564e-05,2]
[396468919,1764976314145,150.0,9.223e-05,2]
[396468920,1764976379042,150.0,8.211e-05,2]
[396468921,1764976379440,150.0,8.957e-05,2]
[396468922,1764976379856,150.0,9.704e-05,2]
[396468923,1764976380777,150.0,0.0001045,2]
[396468924,1764976381202,150.0,0.00011197,2]
[396468927,1764976928333,220.78,0.00015,30]
[396468987,1764977345071,250.0,9.993e-05,3]
[396469051,1764977431696,-518.23262556,0.00012625,2]
[396469052,1764977431706,-253.0,0.00012625,2]
[396469054,1764977431715,-176.13664412,0.00012649,2]
[396469056,1764977431724,-73.36720514,0.00012924,2]
[396469063,1764977437773,-226.63279486,0.00012924,2]
[396469064,1764977437782,-300.0,0.00012925,2]
[396469065,1764977437792,-87.43559092,0.00012925,2]
[396469066,1764977437803,-212.56440908,0.00012925,2]
[396469067,1764977437812,-300.0,0.00012925,2]
[396469068,1764977437821,-129.62700107,0.00012925,2]
[396469069,1764977437832,-170.37299893,0.00012925,2]
[396469070,1764977437841,-300.0,0.00012925,2]
[396469071,1764977437850,-300.0,0.00012925,2]
[396469072,1764977437859,-300.0,0.00012925,2]
[396469073,1764977437868,-300.0,0.00012925,2]
[396469074,1764977437877,-300.0,0.00012925,2]
[396469075,1764977437886,-300.0,0.00012925,2]
[396469076,1764977437895,-300.0,0.00012925,2]
[396469077,1764977437904,-300.0,0.00012925,2]
[396469078,1764977437913,-300.0,0.00012925,2]
[396469079,1764977437922,-300.0,0.00012925,2]
[396469080,1764977437932,-300.0,0.00012925,2]
[396469081,1764977437941,-600.0,0.00012925,2]
[396469082,1764977437950,-509.09441025,0.00013273,2]
[396469083,1764977437960,-500.0,0.00013273,2]
[396469084,1764977437969,-500.0,0.00013273,2]
[396469085,1764977437978,-500.0,0.00013273,2]
[396469086,1764977437987,-456.14987951,0.00013698,2]
[396469087,1764977437996,-198.86964305,0.00013698,2]
[396469088,1764977438006,-11566.50233938,0.00013699,2]
[396469089,1764977438018,-1019.14349382,0.00013699,2]
[396469090,1764977438028,-500.0,0.00013699,2]
[396469091,1764977438037,-500.0,0.00013699,2]
[396469092,1764977438046,-500.0,0.00013699,2]
[396469093,1764977438056,-500.0,0.00013699,2]
[396469094,1764977438065,-1000.0,0.00013699,2]
[396469095,1764977438074,-386.7432,0.00013699,2]
[396469096,1764977438083,-2312.83697232,0.00013769,2]
[396469097,1764977438092,-1000.0,0.00013821,2]
[396469098,1764977438101,-1000.0,0.00013821,2]
[396469099,1764977438111,-1000.0,0.00013821,2]
[396469100,1764977438120,-273.7893695,0.00013929,2]
[396469101,1764977438130,-151.0,0.000141,2]
[396469102,1764977438139,-420.0,0.00014174,2]
[396469103,1764977438148,-720.0,0.00014218,2]
[396469104,1764977438157,-1000.0,0.00014247,2]
[396469105,1764977438166,-1000.0,0.00014247,2]
[396469106,1764977438175,-1000.0,0.00014247,2]
[396469107,1764977438184,-1000.0,0.00014247,2]
[396469108,1764977438194,-2398.4119403,0.00014317,2]
[396469109,1764977438204,-1354.79763394,0.00014368,2]
[396469110,1764977438213,-1500.0,0.00014368,2]
[396469111,1764977438222,-1500.0,0.00014368,2]
[396469112,1764977438231,-207.84124006,0.00014649,2]
[396469113,1764977438241,-500.0,0.00014795,2]
[396469114,1764977438250,-1500.0,0.00014795,2]
[396469115,1764977438259,-1500.0,0.00014795,2]
[396469116,1764977438268,-1500.0,0.00014795,2]
[396469117,1764977438277,-3276.68572561,0.00014863,2]
[396469118,1764977438286,-2487.15318209,0.00014865,2]
[396469119,1764977438295,-678.0,0.00014916,2]
[396469120,1764977438305,-500.0,0.00014916,2]
[396469121,1764977438314,-2000.0,0.00014916,2]
[396469122,1764977438324,-2000.0,0.00014916,2]
[396469123,1764977438333,-500.0,0.00014999,2]
[396469124,1764977438343,-500.0,0.00014999,2]
[396469125,1764977438352,-500.0,0.00014999,2]
[396469126,1764977438364,-500.0,0.00014999,2]
[396469127,1764977438373,-239.16761954,0.00014999,2]
[396469128,1764977438382,-250.0,0.00014999,3]
[396469129,1764977438391,-14141.0,0.00015,2]
[396469130,1764977438400,-678.0,0.00015053,2]
[396469131,1764977438410,-500.0,0.00015053,2]
[396469132,1764977438419,-500.0,0.00015139,2]
[396469133,1764977438427,-678.0,0.0001519,2]
[396469134,1764977438436,-500.0,0.0001519,2]
[396469135,1764977438446,-500.0,0.00015278,2]
[396469136,1764977438456,-678.0,0.00015327,2]
[396469137,1764977438465,-500.0,0.00015327,2]
[396469138,1764977438475,-2000.0,0.00015342,2]
[396469139,1764977438484,-2000.0,0.00015342,2]
[396469140,1764977438494,-2000.0,0.00015342,2]
[396469141,1764977438503,-2579.17784983,0.00015413,2]
[396469142,1764977438513,-678.0,0.00015464,2]
[396469143,1764977438522,-500.0,0.00015464,2]
[396469144,1764977438532,-1765.42868962,0.00015464,2]
[396469145,1764977438542,-2500.0,0.00015464,2]
[396469146,1764977438552,-500.0,0.00015471,2]
[396469147,1764977438561,-1359.0,0.00015543,2]
[396469148,1764977438570,-631.277,0.00015543,2]
[396469149,1764977438579,-2155.0,0.00015543,2]
[396469150,1764977438589,-415.0,0.00015543,2]
[396469151,1764977438598,-587.0,0.00015546,2]
[396469153,1764977438608,-169.92717476,0.00015571,2]
[396469155,1764977438616,-678.0,0.00015601,2]
[396469157,1764977438626,-500.0,0.00015601,2]
[396469159,1764977438635,-864.0,0.00015639,2]
[396469161,1764977438644,-3276.68572561,0.00015688,2]
[396469163,1764977438654,-678.0,0.00015738,2]
[396469165,1764977438663,-500.0,0.00015738,2]
[396469167,1764977438672,-678.0,0.00015875,2]
[396469169,1764977438682,-500.0,0.00015875,2]
[396469171,1764977438691,-2500.0,0.0001589,2]
[396469173,1764977438700,-2500.0,0.0001589,2]
[396469175,1764977438710,-2500.0,0.0001589,2]
[396469177,1764977438720,-500.0,0.00015957,2]
[396469179,1764977438729,-2674.60743027,0.00015961,2]
[396469181,1764977438738,-399.1865873,0.00015963,2]
[396469183,1764977438748,-94907.77216066,0.0001599,2]
[396469186,1764977438764,-706.95306006,0.0001599,2]
[396469188,1764977438776,-381.18565502,0.0001599,2]
[396469190,1764977438788,-2161.8133821,0.0001599,2]
[396469193,1764977438799,-287.48678427,0.0001599,2]
[396469249,1764977440013,-1554.78895789,0.0001599,2]
[396469250,1764977440023,-678.0,0.00016012,2]
[396469251,1764977440033,-500.0,0.00016012,2]
[396469252,1764977440042,-3000.0,0.00016012,2]
[396469253,1764977440052,-678.0,0.00016149,2]
[396469254,1764977440061,-500.0,0.00016149,2]
[396469255,1764977440070,-678.0,0.00016286,2]
[396469256,1764977440080,-237.51916222,0.00016286,2]
[396469257,1764977440090,-500.0,0.00016438,2]
[396469258,1764977440100,-500.0,0.00016438,2]
[396469259,1764977440109,-500.0,0.00016438,2]
[396469260,1764977440118,-639.73693216,0.00016438,2]
[396469261,1764977440128,-500.0,0.00016438,2]
[396469262,1764977440138,-500.0,0.00016438,2]
[396469263,1764977440147,-500.0,0.00016438,2]
[396469264,1764977440156,-500.0,0.00016438,2]
[396469265,1764977440166,-588.23,0.00016438,2]
[396469266,1764977440175,-500.0,0.00016438,2]
[396469267,1764977440184,-500.0,0.00016438,2]
[396469268,1764977440194,-500.0,0.00016438,2]
[396469269,1764977440203,-500.0,0.00016438,2]
[396469270,1764977440213,-500.0,0.00016438,2]
[396469271,1764977440222,-500.0,0.00016438,2]
[396469272,1764977440232,-728.37,0.00016438,2]
[396469273,1764977440241,-500.0,0.00016438,2]
[396469274,1764977440251,-500.0,0.00016438,2]
[396469275,1764977440260,-500.0,0.00016438,2]
[396469276,1764977440269,-351.80329979,0.00016438,2]
[396469539,1764977443435,-148.19670021,0.00016438,2]
[396469540,1764977443446,-952.78,0.00016438,2]
[396469541,1764977443456,-755.8,0.00016438,2]
[396469542,1764977443465,-17.80058957,0.00016438,2]
[396469543,1764977443481,-453.0,0.00016438,2]
[396469558,1764977445852,-29.19941043,0.00016438,2]
[396469559,1764977445862,-500.0,0.00016438,2]
[396469560,1764977445871,-500.0,0.00016438,2]
[396469561,1764977445881,-500.0,0.00016438,2]
[396469562,1764977445890,-500.0,0.00016438,2]
[396469563,1764977445899,-500.0,0.00016438,2]
[396469564,1764977445910,-652.53,0.00016438,2]
[396469565,1764977445919,-500.0,0.00016438,2]
[396469566,1764977445932,-500.0,0.00016438,2]
[396469567,1764977445942,-500.0,0.00016438,2]
[396469568,1764977445951,-500.0,0.00016438,2]
[396469569,1764977445960,-500.0,0.00016438,2]
[396469570,1764977445970,-500.0,0.00016438,2]
[396469571,1764977445980,-203.45524337,0.00016438,2]
[396469572,1764977445989,-500.0,0.00016438,2]
[396469573,1764977445998,-500.0,0.00016438,2]
[396469574,1764977446008,-500.0,0.00016438,2]
[396469575,1764977446017,-500.0,0.00016438,2]
[396469576,1764977446027,-500.0,0.00016438,2]
[396469577,1764977446036,-658.23,0.00016438,2]
[396469578,1764977446045,-500.0,0.00016438,2]
[396469579,1764977446055,-500.0,0.00016438,2]
[396469580,1764977446065,-500.0,0.00016438,2]
[396469581,1764977446074,-500.0,0.00016438,2]
[396469582,1764977446083,-500.0,0.00016438,2]
[396469583,1764977446092,-548.93,0.00016438,2]
[396469584,1764977446101,-303.69447638,0.00016438,2]
[396469585,1764977446111,-675.81,0.00016438,2]
[396469586,1764977446120,-151.0,0.00016438,2]
[396469587,1764977446130,-151.0,0.00016438,2]
[396469588,1764977446139,-151.0,0.00016438,2]
[396469589,1764977446149,-500.0,0.00016438,2]
[396469590,1764977446158,-500.0,0.00016438,2]
[396469591,1764977446168,-500.0,0.00016438,2]
[396469592,1764977446178,-500.0,0.00016438,2]
[396469593,1764977446191,-500.0,0.00016438,2]
[396469594,1764977446201,-500.0,0.00016438,2]
[396469595,1764977446211,-500.0,0.00016438,2]
[396469596,1764977446222,-500.0,0.00016438,2]
[396469597,1764977446232,-500.0,0.00016438,2]
[396469598,1764977446243,-500.0,0.00016438,2]
[396469599,1764977446252,-500.0,0.00016438,2]
[396469600,1764977446261,-500.0,0.00016438,2]
[396469601,1764977446271,-538.12,0.00016438,2]
[396469602,1764977446280,-151.0,0.00016438,2]
[396469603,1764977446288,-151.0,0.00016438,2]
[396469604,1764977446299,-151.0,0.00016438,2]
[396469605,1764977446309,-151.0,0.00016438,2]
[396469606,1764977446319,-151.0,0.00016438,2]
[396469607,1764977446329,-500.0,0.00016438,2]
[396469608,1764977446338,-151.0,0.00016438,2]
[396469609,1764977446349,-151.0,0.00016438,2]
[396469610,1764977446360,-151.0,0.00016438,2]
[396469611,1764977446373,-500.0,0.00016438,2]
[396469612,1764977446384,-500.0,0.00016438,2]
[396469613,1764977446393,-500.0,0.00016438,2]
[396469614,1764977446403,-500.0,0.00016438,2]
[396469615,1764977446413,-500.0,0.00016438,2]